Cogmind - Beta 14 @@@ ROGUE MODE // 2025.03.19 @ 18:41:50 Player: CLown Bot Result: Self-destructed Performance ------------- Evolutions (2) 1000 Regions Visited (5) 1000 Robots Destroyed (10) 50 Value Destroyed (170) 170 Prototype IDs (0) 0 Alien Tech Used (0) 0 Bonus (0) 0 TOTAL SCORE: 2220 Bonus ------- None Cogmind --------- Core Integrity 448/550 Matter 205/300 Energy 430/430 System Corruption 0% Temperature Cool (9) Movement Hovering (116) Ox1 Location -8/Materials Parts ------- > --- POWER (2) -------- Nuclear Core Improved Deuterium Engine > --- PROPULSION (3) --- Improved Hover Unit Gravmag System > --- UTILITY (3) ------ Small Storage Unit Seismic Detector Melee Analysis Suite > --- WEAPON (3) ------- Remote Datajack > --- INVENTORY (8) ---- Light Treads Medium Treads Armored Wheel Armored Huge Wheel Disposable Heat Sink Energy Filter Recalibrator Peak State ------------ > --- POWER ------------ Nuclear Core Improved Deuterium Engine > --- PROPULSION ------- Improved Hover Unit Gravmag System > --- UTILITY ---------- Small Storage Unit Seismic Detector Melee Analysis Suite > --- WEAPON ----------- Arc Projector Remote Datajack Plasma Cutter > --- INVENTORY -------- Light Treads Medium Treads Armored Wheel Armored Huge Wheel Disposable Heat Sink Energy Filter Recalibrator [Rating: 30] Favorites ----------- Power Improved Deuterium Engine Engine Improved Deuterium Engine Power Core Nuclear Core Propulsion Light Treads Treads Light Treads Wheel Compact Wheel Hover Unit Gravmag System Utility Small Storage Unit Device Seismic Detector Storage Small Storage Unit Processor Melee Analysis Suite Protection Light Armor Plating Weapon Medium Laser Energy Gun Medium Laser Energy Cannon Beam Cannon Special Weapon Remote Datajack Impact Weapon Flail Build | -11 -10 -10 -9 -9 -8 ------- Run | Yrd Mat Min Mat Min Mat Slots Evolved 4 | . . . 2 . 2 Power 1 | . . . 1 . . Propulsion 1 | . . . . . 1 Utility 1 | . . . . . 1 Weapon 1 | . . . 1 . . Parts Attached 26 | 3 . 8 3 10 2 Power 4 | . . 1 1 1 1 Engine 3 | . . 1 1 1 . Core 1 | . . . . . 1 Reactor . | . . . . . . Propulsion 9 | 2 . 1 1 5 . Treads 4 | 2 . . 1 1 . Leg . | . . . . . . Wheel 2 | . . 1 . 1 . Hover 3 | . . . . 3 . Flight . | . . . . . . Utility 5 | . . 3 . 1 1 Device 1 | . . . . 1 . Storage 2 | . . 2 . . . Processor 1 | . . . . . 1 Hackware . | . . . . . . Protection 1 | . . 1 . . . Artifact . | . . . . . . Weapon 8 | 1 . 3 1 3 . Energy Gun 4 | 1 . 2 . 1 . Energy Cannon 1 | . . 1 . . . Ballistic Gun . | . . . . . . Ballistic Cannon . | . . . . . . Launcher . | . . . . . . Special Weapon 2 | . . . . 2 . Impact Weapon 1 | . . . 1 . . Slashing Weapon . | . . . . . . Piercing Weapon . | . . . . . . Special Melee Weapon . | . . . . . . Unidentified Prototypes . | . . . . . . Parts Lost 14 | . . 6 6 . 2 Power 1 | . . . 1 . . Propulsion 4 | . . 2 2 . . Utility 2 | . . 2 . . . Weapon 7 | . . 2 3 . 2 Highest Loss Streak 6 | . . 3 6 . 2 To Critical Strikes . | . . . . . . Average Slot Usage (%) 60 | . 42 66 68 47 85 Engine 7 | . . 3 15 7 9 Treads 12 | . 28 21 6 4 . Wheel 3 | . . 2 8 1 . Hover 3 | . . . . 5 18 Device 3 | . . . . 8 9 Storage 8 | . . 6 11 11 9 Protection 2 | . . 7 . . . Energy Gun 12 | . 14 17 18 3 7 Energy Cannon 2 | . . 7 . . . Special Weapon 3 | . . . . 5 16 Impact Weapon 1 | . . . 7 . . Peak Build Rating 30 | 3 3 8 10 26 30 Average Rating 8 | 2 3 5 7 12 28 On Entrance 6 | . 3 3 5 1 24 Naked Turns 1 | . . 1 . . . Heaviest Build 31 | 2 2 13 22 24 31 Greatest Support 40 | 40 40 40 20 28 16 Greatest Overweight (x) 3 | . . . 3 2 1 Average Overweight (x) . | . . . . . 1 Largest Inventory Capacity 8 | 5 5 8 8 8 8 Average Capacity 6 | 5 5 5 8 8 8 Most Carried 8 | 5 5 5 1 8 8 Average Carried 3 | 3 5 3 . 5 8 Final Capacity 8 | 5 5 8 8 8 8 Final Carried 8 | 5 5 . . 8 8 Class Distribution -------------------- 86% | Mutant 13% | Gunner Dominant Class ---------------- Mutant | -10/Materials Mutant | -10/Mines Mutant | -9/Materials Mutant | -9/Mines Gunner | -8/Materials Resources | -11 -10 -10 -9 -9 -8 ----------- Run | Yrd Mat Min Mat Min Mat Matter Collected 400 | 219 11 80 30 60 . Remotely . | . . . . . . Salvage Created 303 | . 33 210 60 . . Parts 23 | . 3 14 6 . . Haulers Intercepted . | . . . . . . Recyclers Shooed 2 | . 2 . . . . Parts Field Recycled . | . . . . . . Retrieved Matter . | . . . . . . Parts Self-Destructed . | . . . . . . Prevented . | . . . . . . Kills | -11 -10 -10 -9 -9 -8 ------- Run | Yrd Mat Min Mat Min Mat Combat Hostiles Destroyed 5 | . . 4 1 . . Guns 3 | . . 2 1 . . Cannons 1 | . . 1 . . . Classes Destroyed 6 | . 2 3 1 . . Worker 3 | . 1 2 . . . Builder 1 | . . 1 . . . Watcher 1 | . 1 . . . . Swarmer 2 | . . 2 . . . Grunt 2 | . . 2 . . . Sentry 1 | . . . 1 . . Best Kill Streak 3 | . 1 3 1 . . Combat Bots Only 2 | . . 2 1 . . Max Kills in Single Turn 1 | . 1 1 1 . . Gunslinging . | . . . . . . Exploded . | . . . . . . Melee . | . . . . . . Uniques/NPCs Destroyed . | . . . . . . Combat | -11 -10 -10 -9 -9 -8 -------- Run | Yrd Mat Min Mat Min Mat Hostile Shots Fired 134 | . . 72 42 . 20 Missed 32 | . . 20 8 . 4 Damage Taken 1555 | . . 661 629 . 265 Core 390 | . . 133 155 . 102 Absorbed by Shields . | . . . . . . Core Remaining (%) 69 | 100 . 46 . 61 . Volleys Fired 93 | 6 20 39 12 1 15 Largest 2 | 1 1 2 2 1 1 Hottest 110 | 50 50 110 80 20 20 Shots Fired 130 | 6 20 64 24 1 15 Gun 99 | 6 20 49 24 . . Cannon 15 | . . 15 . . . Launcher . | . . . . . . Special 16 | . . . . 1 15 Kinetic . | . . . . . . Thermal 99 | 6 20 54 12 1 6 Explosive . | . . . . . . Electromagnetic 22 | . . 10 12 . . Robot Hit Streak 12 | 1 3 5 6 . 12 Robot Miss Streak 3 | 2 3 3 2 2 1 Penetration Max . | . . . . . . Secondary Targets 1 | . . 1 . . . Max Gunslinging Chain 1 | . . 1 . . . Shots Hit Robots 72 | 2 9 34 14 . 13 Core Hits 20 | . 4 9 4 . 3 Critical Kills . | . . . . . . Critical Parts Destroyed . | . . . . . . Critical Strikes 4 | . 1 2 1 . . Burn 3 | . 1 2 . . . Corrupt 1 | . . . 1 . . Melee Attacks 4 | . . . 4 . . Impact 4 | . . . 4 . . Slashing . | . . . . . . Piercing . | . . . . . . Sneak Attacks . | . . . . . . Combat Hostiles . | . . . . . . Follow-up Attacks . | . . . . . . Damage Inflicted 846 | 25 111 446 210 . 54 Guns 618 | 25 111 340 142 . . Cannons 106 | . . 106 . . . Explosions . | . . . . . . Melee 68 | . . . 68 . . Ramming . | . . . . . . Kinetic . | . . . . . . Thermal 662 | 25 111 406 66 . 54 Explosive . | . . . . . . Electromagnetic 116 | . . 40 76 . . Impact 68 | . . . 68 . . Slashing . | . . . . . . Piercing . | . . . . . . Highest Corruption . | . . . . . . Average Corruption . | . . . . . . Corruption Purged . | . . . . . . Corruption Blocked . | . . . . . . Overload Shots . | . . . . . . Overflow Damage 3 | . . 3 . . . Projectiles 3 | . . 3 . . . Explosions . | . . . . . . Melee . | . . . . . . Knockbacks 1 | . . . 1 . . Impact 1 | . . . 1 . . Kinetic . | . . . . . . Secondary . | . . . . . . Self-Inflicted Damage . | . . . . . . Shots . | . . . . . . Rammed . | . . . . . . Targets Rammed . | . . . . . . Kicked . | . . . . . . Crushed . | . . . . . . Highest Temperature 126 | . . 126 121 . 9 Average Temperature 40 | . . 38 47 . 9 Received Heat Transfer 609 | . . 336 129 . 144 Siege Activations . | . . . . . . Robots Corrupted . | . . . . . . Combat Hostiles . | . . . . . . Parts Fried . | . . . . . . Impact Corruptions . | . . . . . . Robots Melted 1 | . . 1 . . . Combat Hostiles 1 | . . 1 . . . Parts Melted 5 | . 2 3 . . . Heat Transferred 2015 | 74 407 1199 150 . 185 Parts Sabotaged . | . . . . . . Parts Stolen . | . . . . . . Parts Stripped . | . . . . . . Power Chain Reactions . | . . . . . . Alert | -11 -10 -10 -9 -9 -8 ------- Run | Yrd Mat Min Mat Min Mat Peak Influence 75 | . 42 66 75 . 30 Initial 16 | . . 16 15 . . Average 19 | . 22 27 43 . 14 Maximum Alert Level . | . . . . . . Low Security (%) 100 | 100 100 100 100 100 100 Level 1 . | . . . . . . Level 2 . | . . . . . . Level 3 . | . . . . . . Level 4 . | . . . . . . Level 5 . | . . . . . . High Security . | . . . . . . Max Security . | . . . . . . Squads Dispatched 3 | . 1 . . 1 1 Investigation 1 | . . . . 1 . Extermination . | . . . . . . Reinforcement 2 | . 1 . . . 1 Assault . | . . . . . . Garrison . | . . . . . . Intercept . | . . . . . . Searches Triggered . | . . . . . . Construction Impeded . | . . . . . . Haulers Reinforced . | . . . . . . Active Scanning Responses . | . . . . . . Cargo Convoy Interrupts . | . . . . . . Stealth | -11 -10 -10 -9 -9 -8 --------- Run | Yrd Mat Min Mat Min Mat Distress Signals 2 | . . 2 . . . Communications Jammed . | . . . . . . Distress Signals . | . . . . . . Times Spotted 20 | . 5 6 3 . 6 Peak Tracking Total 5 | . 1 2 2 . 5 Tactical Retreats 1 | . . 1 . . . Traps | -11 -10 -10 -9 -9 -8 ------- Run | Yrd Mat Min Mat Min Mat Traps Triggered . | . . . . . . Indirectly . | . . . . . . Trap Hack Attempts . | . . . . . . Triggered . | . . . . . . Disarmed . | . . . . . . Reprogrammed . | . . . . . . Reused . | . . . . . . Traps Extracted . | . . . . . . Installed . | . . . . . . Triggered . | . . . . . . Machines | -11 -10 -10 -9 -9 -8 ---------- Run | Yrd Mat Min Mat Min Mat Machines Disabled 1 | . 1 . . . . Max in Single Turn 1 | . 1 . . . . Machines Repaired . | . . . . . . Machines Dismantled . | . . . . . . Machines Sabotaged . | . . . . . . Overloaded Fab Kills . | . . . . . . Hacking | -11 -10 -10 -9 -9 -8 --------- Run | Yrd Mat Min Mat Min Mat Machines Accessed 2 | . . . 1 1 . Terminals 1 | . . . 1 . . Fabricators . | . . . . . . Repair Stations . | . . . . . . Recycling Units . | . . . . . . Scanalyzers . | . . . . . . Garrison Access . | . . . . . . Total Hacks 5 | . . . 4 1 . Successful 3 | . . . 2 1 . Failed 2 | . . . 2 . . Catastrophic . | . . . . . . Database Lockouts . | . . . . . . Manual . | . . . . . . Terminals 4 | . . . 4 . . Fabricators . | . . . . . . Repair Stations . | . . . . . . Recycling Units . | . . . . . . Scanalyzers . | . . . . . . Garrison Access . | . . . . . . Terminal Hacks 3 | . . . 2 1 . Record 1 | . . . 1 . . Open Door 1 | . . . . 1 . Patrol Status 1 | . . . 1 . . Fabricator Hacks . | . . . . . . Repair Station Hacks . | . . . . . . Recycling Unit Hacks . | . . . . . . Scanalyzer . | . . . . . . Garrison Access Hacks . | . . . . . . Unauthorized Hacks . | . . . . . . Terminals . | . . . . . . Fabricators . | . . . . . . Repair Stations . | . . . . . . Recycling Units . | . . . . . . Scanalyzers . | . . . . . . Garrison Access . | . . . . . . Data Cores Recovered . | . . . . . . Used . | . . . . . . Hacking Detections 1 | . . . 1 . . Full Trace Events . | . . . . . . Feedback Events . | . . . . . . Feedback Blocked . | . . . . . . Robot Schematics Acquired . | . . . . . . Robots Built . | . . . . . . Authchips . | . . . . . . Time . | . . . . . . Total Robot Build Rating . | . . . . . . Part Schematics Acquired . | . . . . . . Parts Built . | . . . . . . Authchips . | . . . . . . Time . | . . . . . . Total Part Build Rating . | . . . . . . Parts Repaired . | . . . . . . Time . | . . . . . . Parts Recycled . | . . . . . . Recycled Matter . | . . . . . . Retrieved Matter . | . . . . . . Retrieved Components . | . . . . . . Parts Scanalyzed . | . . . . . . Part Schematics Acquired . | . . . . . . Parts Damaged . | . . . . . . Bothacking | -11 -10 -10 -9 -9 -8 ------------ Run | Yrd Mat Min Mat Min Mat Used RIF Installer . | . . . . . . Robots Hacked 1 | . . . . . 1 Non-combat . | . . . . . . Combat 1 | . . . . . 1 Robot Hacks Applied 2 | . . . . . 2 parse_system 2 | . . . . . 2 Relay Couplers Released . | . . . . . . Fabnet Peak Effective % . | . . . . . . Robots Rewired . | . . . . . . Allies Hacked . | . . . . . . Hacks Repelled . | . . . . . . Allies | -11 -10 -10 -9 -9 -8 -------- Run | Yrd Mat Min Mat Min Mat Total Allies . | . . . . . . Largest Group . | . . . . . . Highest-Rated Group . | . . . . . . Highest-Rated Ally . | . . . . . . Total Orders . | . . . . . . Ally Attacks . | . . . . . . Total Damage . | . . . . . . Kills . | . . . . . . Allies Corrupted . | . . . . . . Allies Melted . | . . . . . . Intel | -11 -10 -10 -9 -9 -8 ------- Run | Yrd Mat Min Mat Min Mat Robot Analysis Total . | . . . . . . Derelict Logs Recovered 2 | . . . . 2 . Drone Launches . | . . . . . . Drone Recoveries . | . . . . . . Exploration | -11 -10 -10 -9 -9 -8 ------------- Run | Yrd Mat Min Mat Min Mat Turns Passed 2110 | 144 148 682 407 578 151 Spaces Moved 1325 | 76 68 399 234 458 90 Core 157 | 5 . . 48 104 . Treads 647 | 71 68 285 86 137 . Legs . | . . . . . . Wheels 310 | . . 114 100 96 . Hover 211 | . . . . 121 90 Flight . | . . . . . . Fastest Speed 50 | 50 160 100 100 90 116 Average Speed 136 | 152 160 142 152 120 116 Slowest Speed 240 | 160 160 160 240 200 116 Overloaded Moves . | . . . . . . Propulsion Burnouts . | . . . . . . Robots Hopped . | . . . . . . Cave-ins Triggered . | . . . . . . Exploration Rate (%) 22 | 4 15 41 12 52 8 Regions Visited 5 Branch Regions 2 Pre-discovered Areas . | . . . . . . Known Exits Taken . | . . . . . . Unknown Exits Taken 5 | 1 1 1 1 1 . Scrap Searched 3 | . . 2 . 1 . Spaces Dug . | . . . . . . Terrain Destroyed . | . . . . . . Melee . | . . . . . . Projectile . | . . . . . . AOE . | . . . . . . Terrain Rammed . | . . . . . . Walls Destroyed . | . . . . . . Machines Disabled . | . . . . . . Actions | -11 -10 -10 -9 -9 -8 --------- Run | Yrd Mat Min Mat Min Mat Total 1479 | 98 87 445 255 483 111 Wait 7 | 7 . . . . . Move 1320 | 75 67 398 233 457 90 Hop . | . . . . . . Pick Up 22 | 7 . . 3 12 . Fast Attach 8 | 1 . 3 . 2 2 Attach 18 | 2 . 5 3 8 . Detach 3 | . . . . 3 . Swap . | . . . . . . Drop . | . . . . . . Fire 93 | 6 20 39 12 1 15 Melee 4 | . . . 4 . . Ram . | . . . . . . Kick . | . . . . . . Crush . | . . . . . . Escape Stasis . | . . . . . . Rewire . | . . . . . . Trap . | . . . . . . Miscellaneous 4 | . . . . . 4 Route ------- -11/Scrapyard -10/Materials -10/Mines -9/Materials -9/Mines -8/Materials History --------- Turn | Location | Event 33 | -11/Scrapyard | Discovered new exit (range 15) 145 | -11/Scrapyard | Entered Materials 250 | -10/Materials | Discovered new exit (range 13) 293 | -10/Materials | Entered Mines 317 | -10/Mines | Build established: Mutant 834 | -10/Mines | Core integrity fell below 50% 857 | -10/Mines | Lost 3 parts (2n1w) 964 | -10/Mines | Discovered new exit (range 11) 975 | -10/Mines | Entered Materials 975 | -9/Materials | Evolved 2 slots: Power x1, Weapon x1 1020 | -9/Materials | Discovered new exit (range 11) 1363 | -9/Materials | Lost 6 parts (1p2n3w) 1382 | -9/Materials | Entered Mines 1406 | -9/Mines | Learned Materials security intel 1444 | -9/Mines | Found a hidden stash of uninstalled traps 1470 | -9/Mines | Learned 4 Materials zone layouts 1485 | -9/Mines | Discovered new exit (range 7) 1565 | -9/Mines | Met a Derelict shopkeep closing up shop 1960 | -9/Mines | Entered Materials 1960 | -8/Materials | Evolved 2 slots: Propulsion x1, Utility x1 2111 | -8/Materials | Self-destructed Last Messages --------------- Jacked G-47 Trooper... >>parse_system Reading system data... R-06 Scavenger collects Rnf. Ion Engine. Arc Projector destroyed. Jacked G-47 Trooper... Command string: kys No effect. Jacked G-47 Trooper... Command string: overload No effect. Jacked G-47 Trooper... Command string: OVERLOAD No effect. Jacked G-47 Trooper... Command string: pot of gold No effect. Jacked G-47 Trooper... Command string: Nigger No effect. Map ----- +----------------------------------------------------+ | | | | | | | | | | | | | | | | | | | | | | | | | | | | | | | | | ???????????????###########??????#????????????????? | | ???????????????# #????? ?????????????????? | | ???????????????# """ #???? ?????????????????? | | ???????????????# "Y" ##### ??????????????????? | | ?????#######???# # +???????????????????? | | ###### #???######/####^ #???????????????????? | | # ######### ### ### ???????? | | T %g% #?????????? | | # [ ### ##### ###g#######+??????????????? | | ###### #?# #???## ###@ #????????????????????? | | ?????#######?# #????# #?# #????????????????????? | | ?????????????# #????# #?# #????????????????????? | | ######???????# #????# #?# #????????????????????? | | #####???# #????# #?# #????????????????????? | | "T" # #???# #????# #?# =#????????????????????? | | # #####+###??# #?# #????????????????????? | | ! # # [#??# #?#####????????????????????? | | + + #??? ???????????????????????????? | | # # #??? ???????????????????????????? | | ###### #########??? ???????????????????????????? | | ?????# #???????????+???????????????????????????? | | ?????# #???????????????????????????????????????? | | ?????# #???????????????????????????????????????? | | ###### #???????????????????????????????????????? | | #???????????????????????????????????????? | | ???? # ""S # """ #?????????????????????????? | | ???? # "" # #???#####?????????????????? | | ??? # ####+####### ?????????????????? | | ??? ###### """ # # """?????????????????? | | ?? ?????# """ + # """?????????????????? | | ?? ??????# """ # # """?????????????????? | | ?????????# #### ### + ?????????????????? | | ???????### """ #??????# # ?????????????????? | | ??????? # """ #??????# # ?????????????????? | +----------------------------------------------------+ Best States ------------- Heat Dissipation 31 Energy Generation 25 Energy Capacity 430 Matter Stores 450 Matter Capacity 450 Sight Range 16 Terrain Scan Density 10 Armor Coverage 150 Evasion (%) 42 Melee Accuracy 5 Recoil Reduction 2 Item Schematics ----------------- None Robot Schematics ------------------ None Fabricated ------------ Nothing Alien Tech Used ----------------- None Achievements -------------- It's Just You Uninvited Guest Challenges ------------ None Game ------ Seed PowerForceInverter Manual? 0 Play Time 00:29:35 Cumulative 0.9 hours Start 2025.03.12 @ 19:36:57 End 2025.03.19 @ 18:41:50 Sessions 1 Manual Loads 0 Difficulty Rogue Special Mode None Game No. 4 Rogue 4 Adventurer 0 Explorer 0 Win Type - Total 0 Types 0/0/0/0/0/0/0/0/0 Lore% 0 Gallery% 3 Achievement% 3 Wizard Run 0 Options --------- Layout 1 ASCII 0 Keyboard 0 Movement Mouse Keybinds 0 Fullscreen 2 Font 24/Smallcaps Map View 50x35 Zoom Use 0% Tactical HUD 0 Map Filters NONE Filters NONE Steam 1 RUN: 3b2eb18d-47fa-4995-b1d4-2ee34ac05d25